fUSD/lending_fUSD_20241122
["ID","MTS","AMOUNT","RATE_DAILY","PERIOD"]
[343027974,1732295432373,-600.0,0.000599,21]
[343027975,1732295432383,-2496.03797551,0.00060595,3]
[343027976,1732295432392,-3152.79394291,0.00060595,2]
[343027977,1732295432410,-6512.34665815,0.00060605,2]
[343027978,1732295432423,-6382.513088,0.00060605,2]
[343027979,1732295432728,-791.24822385,0.00060605,2]
[343027980,1732295432790,-2193.04946339,0.00060605,2]
[343027981,1732295432802,-8020.84256661,0.00060605,2]
[343027982,1732295432812,-2496.03797551,0.00060859,3]
[343027983,1732295432822,-840.62,0.00060869,2]
[343027984,1732295432833,-250.0,0.00062713,2]
[343027985,1732295432843,-166.6,0.00062881,2]
[343027986,1732295432853,-2496.03797551,0.0006298,4]
[343027987,1732295432863,-25180.6285939,0.0006299,4]
[343027988,1732295432874,-3000.0,0.00063,2]
[343027989,1732295432885,-473.791,0.0006396,120]
[343027990,1732295432896,-4127.4419128,0.00064149,15]
[343028256,1732295438246,-4087.588371,0.00060302,30]
[343028257,1732295438256,-688.79107131,0.00064149,15]
[343028258,1732295438266,-4934.95778986,0.00064149,15]
[343028259,1732295438275,-50078.0,0.000648,120]
[343028260,1732295438285,-2496.03797551,0.0006498,4]
[343028261,1732295438295,-2500.0,0.0006499,12]
[343028262,1732295438305,-2500.0,0.0006499,12]
[343028263,1732295438314,-473.796,0.0006763,120]
[343028264,1732295438324,-4816.23298411,0.00068618,15]
[343028265,1732295438335,-4934.95778986,0.00068618,15]
[343028266,1732295438344,-1200.0,0.000689,25]
[343028267,1732295438354,-2496.03797551,0.0006999,5]
[343028268,1732295438364,-21361.0,0.0007,120]
[343028269,1732295438376,-200.0,0.0007,120]
[343028270,1732295438387,-762.52,0.00070241,60]
[343028271,1732295438397,-150.0,0.00070934,2]
[343028272,1732295438406,-167.8,0.00071149,2]
[343028273,1732295438419,-473.853,0.000713,120]
[343028274,1732295438429,-385.189,0.00072275,120]
[343028275,1732295438438,-4816.23298411,0.00073087,15]
[343028276,1732295438448,-4934.95778986,0.00073087,15]
[343028277,1732295438457,-150.0,0.00074,120]
[343028278,1732295438467,-473.77,0.0007497,120]
[343028279,1732295438476,-200.0,0.00075745,2]
[343028280,1732295438486,-4816.23298411,0.00077556,15]
[343028281,1732295438496,-4934.95778986,0.00077556,15]
[343028282,1732295438506,-196.34773275,0.00078484,28]
[343028283,1732295438517,-250.0,0.00078584,120]
[343028284,1732295438527,-473.786,0.0007864,120]
[343028285,1732295438537,-250.0,0.00079384,120]
[343028286,1732295438546,-167.8,0.00079752,2]
[343028287,1732295438557,-185.65024178,0.000798,64]
[343028288,1732295438566,-200.0,0.0008,120]
[343028289,1732295438576,-1000.0,0.00080008,120]
[343028290,1732295438586,-196.34773269,0.00081543,28]
[343028291,1732295438596,-4816.23298411,0.00082024,15]
[343028292,1732295438605,-4934.95778986,0.00082024,15]
[343028293,1732295438614,-420.99969636,0.000822,120]
[343028294,1732295438623,-7076.19131478,0.000822,120]
[343028295,1732295438633,-1769.04797869,0.000822,120]
[343028296,1732295438643,-1769.04797869,0.000822,120]
[343028297,1732295438653,-1769.04797869,0.000822,120]
[343028299,1732295438665,-1769.04797869,0.000822,120]
[343028301,1732295438675,-1769.04797869,0.000822,120]
[343028302,1732295438684,-1769.04797869,0.000822,120]
[343028303,1732295438694,-473.823,0.0008231,120]
[343028304,1732295438704,-7076.19131478,0.000832,120]
[343028305,1732295438713,-4992.0,0.000833,120]
[343028306,1732295438723,-150.0,0.00084,120]
[343028307,1732295438732,-7076.19131478,0.000842,120]
[343028308,1732295438741,-196.34773269,0.00084603,28]
[343028309,1732295438751,-385.189,0.0008485,120]
[343028310,1732295438760,-11560.0,0.000851,120]
[343028311,1732295438770,-7076.19131478,0.000852,120]
[343028312,1732295438779,-473.813,0.0008598,120]
[343028313,1732295438788,-7076.19131478,0.000862,120]
[343028314,1732295438797,-4816.23298411,0.00086493,15]
[343028315,1732295438807,-4934.95778986,0.00086493,15]
[343028316,1732295438817,-7076.19131478,0.000872,120]
[343028317,1732295438826,-196.34773269,0.00087662,28]
[343028320,1732295438968,-7076.19131478,0.000882,120]
[343028321,1732295438986,-167.8,0.00088355,2]
[343028322,1732295438999,-1168.96,0.00089037,120]
[343028323,1732295439010,-7076.19131478,0.000892,120]
[343028324,1732295439023,-473.834,0.0008965,120]
[343028325,1732295439037,-336.41,0.00089759,120]
[343028326,1732295439050,-5000.0,0.00089785,120]
[343028327,1732295439061,-431.83,0.000899,60]
[343028328,1732295439073,-168.28916002,0.000899,120]
[343028329,1732295439091,-892.39937041,0.000899,120]
[343028330,1732295439103,-892.39937039,0.000899,120]
[343028331,1732295439114,-892.39937039,0.000899,120]
[343028332,1732295439126,-892.39937039,0.000899,120]
[343028333,1732295439138,-892.39937039,0.000899,120]
[343028334,1732295439149,-892.39937039,0.000899,120]
[343028335,1732295439164,-892.39937039,0.000899,120]
[343028336,1732295439179,-892.39937039,0.000899,120]
[343028337,1732295439190,-892.39937039,0.000899,120]
[343028338,1732295439200,-892.39937039,0.000899,120]
[343028339,1732295439211,-892.39937039,0.000899,120]
[343028340,1732295439221,-892.39937039,0.000899,120]
[343028341,1732295439232,-892.39937039,0.000899,120]
[343028342,1732295439243,-5000.0,0.00089907,120]
[343028343,1732295439253,-2496.03797551,0.00089989,11]
[343028344,1732295439264,-200.0,0.0009,120]
[343028345,1732295439274,-2944.0,0.0009,60]
[343028346,1732295439284,-1000.0,0.00090009,120]
[343028347,1732295439294,-7076.19131478,0.000902,120]
[343028348,1732295439304,-196.34773269,0.00090722,28]
[343028349,1732295439314,-150.0,0.00090877,120]
[343028350,1732295439324,-150.0,0.00090877,120]
[343028351,1732295439338,-150.0,0.00090877,120]
[343028352,1732295439361,-269.44071542,0.00090877,120]
[343028353,1732295439378,-2496.03797551,0.0009088,11]
[343028354,1732295439389,-25180.6285939,0.0009089,13]
[343028355,1732295439399,-7488.11392653,0.0009089,11]
[343028356,1732295439413,-50000.0,0.000909,120]
[343028357,1732295439423,-153.0,0.00090958,120]
[343028358,1732295439434,-153.0,0.00090958,120]
[343028359,1732295439444,-153.0,0.00090958,120]
[343028360,1732295439454,-153.0,0.00090958,120]
[343028361,1732295439465,-153.0,0.00090958,120]
[343028362,1732295439474,-153.0,0.00090958,120]
[343028363,1732295439484,-153.0,0.00090958,120]
[343028364,1732295439494,-153.0,0.00090958,120]
[343028365,1732295439504,-153.0,0.00090958,120]
[343028366,1732295439514,-4816.23298411,0.00090962,15]
[343028367,1732295439524,-7076.19031478,0.000912,120]
[343028368,1732295439534,-4992.07595102,0.0009138,11]
[343028369,1732295439544,-155.98,0.0009138,120]
[343028370,1732295439554,-25180.6285939,0.0009139,13]
[343028371,1732295439564,-7488.11392653,0.0009139,11]
[343028372,1732295439574,-50000.0,0.000914,120]
[343028373,1732295439583,-150.0,0.00091779,120]
[343028374,1732295439593,-2496.03797551,0.0009188,11]
[343028375,1732295439603,-25180.6285939,0.0009189,14]
[343028376,1732295439613,-7488.11392653,0.0009189,11]
[343028377,1732295439624,-50000.0,0.000919,120]
[343028378,1732295439634,-2496.03797551,0.0009199,11]
[343028379,1732295439645,-3000.0,0.00092,120]
[343028380,1732295439655,-2496.03797551,0.0009238,11]
[343028381,1732295439668,-25180.6285939,0.0009239,14]
[343028382,1732295439678,-4992.07595102,0.0009239,11]
[343028383,1732295439689,-50000.0,0.000924,120]
[343028384,1732295439700,-201.13367907,0.00092425,60]
[343028385,1732295439710,-1014.0,0.000925,64]
[343028386,1732295439720,-150.0,0.00092682,120]
[343028387,1732295439730,-25180.6285939,0.0009289,14]
[343028388,1732295439740,-50000.0,0.000929,120]
[343028389,1732295439750,-300.0,0.000929,33]
[343028390,1732295439760,-500.0,0.00092971,120]
[343028391,1732295439770,-25180.6285939,0.0009314,14]
[343028392,1732295439780,-578.45591,0.0009315,120]
[343028393,1732295439790,-186.241527,0.0009315,120]
[343028394,1732295439801,-154.589909,0.0009315,120]
[343028395,1732295439811,-578.45591,0.0009315,120]
[343028396,1732295439821,-578.45591,0.0009315,120]
[343028397,1732295439830,-578.45591,0.0009315,120]
[343028399,1732295439841,-578.45591,0.0009315,120]
[343028400,1732295439852,-578.45591,0.0009315,120]
[343028401,1732295439863,-578.45591,0.0009315,120]
[343028402,1732295439873,-578.45591,0.0009315,120]
[343028403,1732295439883,-578.45591,0.0009315,120]
[343028404,1732295439894,-578.45591,0.0009315,120]
[343028406,1732295439904,-578.45591,0.0009315,120]
[343028407,1732295439916,-500.0,0.00093299,13]
[343028409,1732295439927,-500.0,0.00093299,13]
[343028411,1732295439937,-500.0,0.00093299,13]
[343028413,1732295439948,-500.0,0.00093299,13]
[343028414,1732295439959,-500.0,0.00093299,13]
[343028415,1732295439969,-500.0,0.00093299,13]
[343028417,1732295439979,-500.0,0.00093299,13]
[343028418,1732295439988,-500.0,0.00093299,13]
[343028419,1732295439997,-500.0,0.00093299,13]
[343028420,1732295440007,-500.0,0.00093299,13]
[343028421,1732295440016,-500.0,0.00093299,13]
[343028422,1732295440026,-500.0,0.00093299,13]
[343028423,1732295440036,-500.0,0.00093299,13]
[343028424,1732295440047,-500.0,0.00093299,13]
[343028425,1732295440057,-500.0,0.00093299,13]
[343028426,1732295440067,-500.0,0.00093299,13]
[343028427,1732295440076,-500.0,0.00093299,13]
[343028428,1732295440087,-500.0,0.00093299,13]
[343028429,1732295440097,-500.0,0.00093299,13]
[343028430,1732295440107,-500.0,0.00093299,13]
[343028431,1732295440117,-500.0,0.00093299,13]
[343028432,1732295440127,-500.0,0.00093299,13]
[343028433,1732295440138,-500.0,0.00093299,13]
[343028434,1732295440148,-500.0,0.00093299,13]
[343028435,1732295440159,-500.0,0.00093299,13]
[343028436,1732295440174,-500.0,0.00093299,13]
[343028437,1732295440190,-500.0,0.00093299,13]
[343028438,1732295440200,-500.0,0.00093299,13]
[343028439,1732295440211,-500.0,0.00093299,13]
[343028440,1732295440221,-500.0,0.00093299,13]
[343028441,1732295440230,-500.0,0.00093299,13]
[343028442,1732295440240,-500.0,0.00093299,13]
[343028443,1732295440250,-500.0,0.00093299,13]
[343028444,1732295440259,-500.0,0.00093299,13]
[343028445,1732295440269,-500.0,0.00093299,13]
[343028446,1732295440278,-500.0,0.00093299,13]
[343028447,1732295440288,-500.0,0.00093299,13]
[343028448,1732295440297,-500.0,0.00093299,13]
[343028449,1732295440307,-500.0,0.00093299,13]
[343028450,1732295440317,-443.0,0.00093299,13]
[343028451,1732295440326,-500.0,0.00093299,13]
[343028452,1732295440340,-500.0,0.00093299,13]
[343028453,1732295440350,-500.0,0.00093299,13]
[343028454,1732295440361,-500.0,0.00093299,13]
[343028455,1732295440371,-500.0,0.00093299,13]
[343028456,1732295440383,-500.0,0.00093299,13]
[343028459,1732295440399,-500.0,0.00093299,13]
[343028461,1732295440410,-441.0,0.00093299,13]
[343028462,1732295440423,-473.802,0.0009332,120]
[343028463,1732295440434,-25180.6285939,0.0009339,14]
[343028464,1732295440444,-500.0,0.00093399,120]
[343028465,1732295440454,-50000.0,0.000934,120]
[343028467,1732295440465,-169.38609538,0.00093419,120]
[343028468,1732295440475,-500.0,0.00093519,120]
[343028469,1732295440485,-500.0,0.00093536,120]
[343028470,1732295440495,-500.0,0.00093575,2]
[343028471,1732295440505,-150.0,0.00093584,120]
[343028472,1732295440514,-5942.0,0.00093594,120]
[343028473,1732295440524,-2095.903,0.00093594,120]
[343028474,1732295440534,-1087.0,0.00093594,120]
[343028475,1732295440544,-500.0,0.00093673,120]
[343028476,1732295440554,-196.34773269,0.00093781,28]
[343028477,1732295440564,-500.0,0.0009381,120]
[343028478,1732295440573,-25180.6285939,0.0009389,14]
[343028479,1732295440583,-50000.0,0.000939,120]
[343028480,1732295440592,-507.0,0.00093947,120]
[343028481,1732295440602,-195.0,0.00094,120]
[343028482,1732295440612,-4852.56737649,0.00094,120]
[343028483,1732295440622,-1038.577692,0.00094,120]
[343028484,1732295440632,-5156.429999,0.00094,120]
[343028485,1732295440641,-28900.0,0.00094,120]
[343028486,1732295440651,-500.0,0.00094067,120]
[343028487,1732295440662,-183.0,0.00094265,120]
[343028488,1732295440672,-25180.6285939,0.0009439,14]
[343028489,1732295440683,-50000.0,0.000944,120]
[343028490,1732295440693,-150.0,0.00094487,120]
[343028491,1732295440703,-25180.6285939,0.0009449,14]
[343028492,1732295440712,-969.52,0.000945,120]
[343028493,1732295440722,-969.52,0.000945,120]
[343028494,1732295440731,-969.52,0.000945,120]
[343028495,1732295440741,-969.52,0.000945,120]
[343028496,1732295440751,-969.52,0.000945,120]
[343028497,1732295440760,-969.52,0.000945,120]
[343028498,1732295440770,-969.52,0.000945,120]
[343028499,1732295440779,-969.52,0.000945,120]
[343028500,1732295440789,-969.52,0.000945,120]
[343028501,1732295440798,-969.52,0.000945,120]
[343028502,1732295440808,-969.52,0.000945,120]
[343028503,1732295440818,-969.52,0.000945,120]
[343028504,1732295440827,-969.52,0.000945,120]
[343028505,1732295440837,-969.52,0.000945,120]
[343028506,1732295440846,-963.7,0.000945,120]
[343028507,1732295440856,-500.0,0.00094615,120]
[343028508,1732295440866,-433.48,0.00094841,60]
[343028509,1732295440876,-433.48,0.00094841,60]
[343028510,1732295440885,-25180.6285939,0.0009489,15]
[343028511,1732295440895,-50000.0,0.000949,120]
[343028512,1732295440908,-1800.0,0.000949,34]
[343028513,1732295440927,-700.0,0.000949,34]
[343028514,1732295440937,-433.48,0.00094941,60]
[343028515,1732295440947,-433.48,0.00094941,60]
[343028516,1732295440957,-50361.2571877,0.0009499,15]
[343028517,1732295440967,-25180.6285939,0.0009499,15]
[343028518,1732295440977,-578.45591,0.00094997,120]
[343028519,1732295440987,-12276.85906162,0.00094998,120]
[343028520,1732295440996,-16964.51575483,0.00094998,120]
[343028521,1732295441006,-578.45591,0.00094998,120]
[343028522,1732295441017,-578.45591,0.00094999,120]
[343028523,1732295441027,-100000.0,0.00095,81]
[343028524,1732295441037,-10000.0,0.00095,8]
[343028525,1732295441046,-4000.0,0.00095,120]
[343028526,1732295441056,-2023.7011,0.00095,120]
[343028527,1732295441066,-5156.429999,0.00095,120]
[343028528,1732295441075,-500.0,0.00095163,120]
[343028529,1732295441085,-183.0,0.00095236,120]
[343028530,1732295441095,-150.0,0.00095389,120]
[343028531,1732295441105,-25180.6285939,0.0009539,15]
[343028532,1732295441114,-50000.0,0.000954,120]
[343028533,1732295441123,-4816.23298411,0.00095431,15]
[343028534,1732295441135,-416.0,0.00095644,120]
[343028535,1732295441144,-1000.0,0.000957,34]
[343028536,1732295441155,-500.0,0.00095711,120]
[343028537,1732295441167,-155.98,0.0009577,120]
[343028538,1732295441176,-501.83472155,0.00095773,60]
[343028539,1732295441186,-67398.84114531,0.0009578,120]
[343028540,1732295441231,-1082601.15885468,0.0009578,120]
[343028541,1732295441240,-25180.6285939,0.0009578,15]
[343028542,1732295441250,-1040.65922872,0.0009579,2]
[343028543,1732295441260,-640.42671642,0.0009579,2]
[343028544,1732295441270,-214.38376734,0.0009579,2]
[343028545,1732295441279,-717741.4557,0.0009579,120]
[343028546,1732295441289,-2823.6177,0.0009579,30]
[343028547,1732295441298,-500.0,0.0009579,120]
[343028548,1732295441308,-2400.0,0.000958,34]
[343028549,1732295441318,-1400.0,0.000958,34]
[343028550,1732295441327,-5018.0,0.000958,7]
[343028551,1732295441339,-501.87801716,0.0009589,120]
[343028552,1732295441349,-500.0,0.0009589,120]
[343028553,1732295441359,-500.0,0.0009589,120]
[343028554,1732295441370,-500.0,0.0009589,120]
[343028555,1732295441381,-193.51675758,0.0009589,120]
[343028556,1732295441391,-504.44,0.0009589,120]
[343028557,1732295441400,-500.0,0.0009589,120]
[343028558,1732295441409,-500.0,0.0009589,120]
[343028559,1732295441421,-500.0,0.0009589,120]
[343028560,1732295441430,-500.0,0.0009589,120]
[343028561,1732295441441,-554.71762603,0.0009589,120]
[343028562,1732295441451,-605.5241229,0.0009589,120]
[343028563,1732295441462,-500.0,0.0009589,120]
[343028564,1732295441567,-500.0,0.0009589,120]
[343028565,1732295441578,-500.0,0.0009589,120]
[343028566,1732295441588,-500.0,0.0009589,120]
[343028567,1732295441597,-500.0,0.0009589,120]
[343028568,1732295441606,-500.0,0.0009589,120]
[343028569,1732295441616,-500.0,0.0009589,120]
[343028570,1732295441625,-500.0,0.0009589,120]
[343028571,1732295441635,-500.0,0.0009589,120]
[343028572,1732295441645,-493.94306,0.0009589,120]
[343028573,1732295441654,-500.0,0.0009589,120]
[343028574,1732295441664,-500.0,0.0009589,120]
[343028575,1732295441674,-500.0,0.0009589,120]
[343028576,1732295441683,-500.0,0.0009589,120]
[343028577,1732295441693,-500.0,0.0009589,120]
[343028578,1732295441703,-500.0,0.0009589,120]
[343028579,1732295441712,-500.0,0.0009589,120]
[343028580,1732295441721,-500.0,0.0009589,120]
[343028581,1732295441731,-500.0,0.0009589,120]
[343028582,1732295441740,-500.0,0.0009589,120]
[343028583,1732295441750,-500.0,0.0009589,120]
[343028584,1732295441759,-500.0,0.0009589,120]
[343028585,1732295441769,-500.0,0.0009589,120]
[343028586,1732295441778,-500.0,0.0009589,120]
[343028587,1732295441787,-505.75638912,0.0009589,120]
[343028588,1732295441796,-500.0,0.0009589,120]
[343028589,1732295441805,-500.0,0.0009589,120]
[343028590,1732295441814,-516.88972451,0.0009589,120]
[343028591,1732295441823,-298.03169611,0.0009589,120]
[343028592,1732295441833,-500.0,0.0009589,120]
[343028593,1732295441844,-500.0,0.0009589,120]
[343028594,1732295441853,-500.0,0.0009589,120]
[343028595,1732295441862,-488.13744194,0.0009589,120]
[343028596,1732295441873,-500.0,0.0009589,120]
[343028597,1732295441882,-500.0,0.0009589,120]
[343028598,1732295441892,-500.0,0.0009589,120]
[343028599,1732295441902,-500.0,0.0009589,120]
[343028600,1732295441911,-500.0,0.0009589,120]
[343028601,1732295441922,-500.0,0.0009589,120]
[343028602,1732295441932,-409.87278759,0.0009589,120]
[343028603,1732295441941,-500.0,0.0009589,120]
[343028604,1732295441951,-500.0,0.0009589,120]
[343028605,1732295441961,-500.0,0.0009589,120]
[343028606,1732295441971,-500.0,0.0009589,120]
[343028607,1732295441981,-500.0,0.0009589,120]
[343028608,1732295441990,-500.0,0.0009589,120]
[343028609,1732295442000,-500.0,0.0009589,120]
[343028610,1732295442010,-500.0,0.0009589,120]
[343028611,1732295442019,-500.0,0.0009589,120]
[343028612,1732295442029,-500.0,0.0009589,120]
[343028613,1732295442039,-500.0,0.0009589,120]
[343028614,1732295442049,-500.0,0.0009589,120]
[343028615,1732295442059,-500.0,0.0009589,120]
[343028616,1732295442069,-500.0,0.0009589,120]
[343028617,1732295442079,-500.0,0.0009589,120]
[343028618,1732295442089,-500.0,0.0009589,120]
[343028619,1732295442099,-370.48317782,0.0009589,120]
[343028620,1732295442108,-500.0,0.0009589,120]
[343028621,1732295442118,-500.0,0.0009589,120]
[343028622,1732295442127,-500.0,0.0009589,120]
[343028623,1732295442137,-3539.95,0.0009589,120]
[343028624,1732295442146,-3539.95,0.0009589,120]
[343028625,1732295442156,-3539.95,0.0009589,120]
[343028626,1732295442168,-3539.95,0.0009589,120]
[343028627,1732295442178,-3539.95,0.0009589,120]
[343028628,1732295442188,-3539.95,0.0009589,120]
[343028629,1732295442198,-3539.95,0.0009589,120]
[343028630,1732295442208,-3539.95,0.0009589,120]
[343028631,1732295442218,-3539.95,0.0009589,120]
[343028632,1732295442227,-3539.95,0.0009589,120]
[343028633,1732295442236,-3539.95,0.0009589,120]
[343028634,1732295442246,-3539.95,0.0009589,120]
[343028635,1732295442255,-3539.95,0.0009589,120]
[343028636,1732295442265,-3539.95,0.0009589,120]
[343028637,1732295442274,-3539.95,0.0009589,120]
[343028638,1732295442283,-3539.95,0.0009589,120]
[343028639,1732295442292,-3539.95,0.0009589,120]
[343028640,1732295442302,-3539.95,0.0009589,120]
[343028641,1732295442312,-3539.95,0.0009589,120]
[343028642,1732295442321,-3539.95,0.0009589,120]
[343028643,1732295442331,-3539.95,0.0009589,120]
[343028644,1732295442345,-3539.95,0.0009589,120]
[343028645,1732295442354,-3539.95,0.0009589,120]
[343028646,1732295442363,-3540.17143111,0.0009589,120]
[343028647,1732295442374,-500.0,0.0009589,120]
[343028648,1732295442384,-398.28395818,0.0009589,120]
[343028649,1732295442393,-500.0,0.0009589,120]
[343028650,1732295442403,-500.0,0.0009589,120]
[343028651,1732295442412,-354.26468998,0.0009589,120]
[343028652,1732295442423,-500.0,0.0009589,120]
[343028653,1732295442432,-500.0,0.0009589,120]
[343028654,1732295442441,-500.0,0.0009589,120]
[343028655,1732295442450,-500.0,0.0009589,120]
[343028656,1732295442459,-500.0,0.0009589,120]
[343028657,1732295442467,-500.0,0.0009589,120]
[343028658,1732295442476,-500.0,0.0009589,120]
[343028659,1732295442485,-500.0,0.0009589,120]
[343028660,1732295442495,-500.0,0.0009589,120]
[343028661,1732295442504,-500.0,0.0009589,120]
[343028662,1732295442513,-500.0,0.0009589,120]
[343028663,1732295442522,-500.0,0.0009589,120]
[343028664,1732295442531,-500.0,0.0009589,120]
[343028665,1732295442541,-500.0,0.0009589,120]
[343028666,1732295442550,-500.0,0.0009589,120]
[343028667,1732295442560,-500.0,0.0009589,120]
[343028668,1732295442569,-500.0,0.0009589,120]
[343028669,1732295442579,-500.0,0.0009589,120]
[343028670,1732295442589,-268.62,0.0009589,120]
[343028671,1732295442599,-500.0,0.0009589,120]
[343028672,1732295442609,-500.0,0.0009589,120]
[343028673,1732295442619,-500.0,0.0009589,120]
[343028674,1732295442629,-500.0,0.0009589,120]
[343028675,1732295442639,-500.0,0.0009589,120]
[343028676,1732295442649,-344.56416958,0.0009589,120]
[343028677,1732295442662,-640.33,0.0009589,120]
[343028678,1732295442676,-500.0,0.0009589,120]
[343028679,1732295442690,-500.0,0.0009589,120]
[343028680,1732295442704,-500.0,0.0009589,120]
[343028681,1732295442715,-500.0,0.0009589,120]
[343028682,1732295442726,-500.0,0.0009589,120]
[343028683,1732295442738,-500.0,0.0009589,120]
[343028684,1732295442750,-500.0,0.0009589,120]
[343028685,1732295442763,-500.0,0.0009589,120]
[343028686,1732295442775,-500.0,0.0009589,120]
[343028687,1732295442787,-500.0,0.0009589,120]
[343028688,1732295442799,-459.32,0.0009589,120]
[343028689,1732295442812,-500.0,0.0009589,120]
[343028691,1732295442825,-417.60004934,0.0009589,120]
[343028692,1732295442837,-500.0,0.0009589,120]
[343028693,1732295442848,-500.0,0.0009589,120]
[343028694,1732295442860,-500.0,0.0009589,120]
[343028696,1732295442871,-500.0,0.0009589,120]
[343028697,1732295442883,-500.0,0.0009589,120]
[343028700,1732295442896,-500.0,0.0009589,120]
[343028701,1732295442908,-500.0,0.0009589,120]
[343028702,1732295442922,-500.0,0.0009589,120]
[343028703,1732295442936,-500.0,0.0009589,120]
[343028704,1732295442949,-500.0,0.0009589,120]
[343028705,1732295442961,-500.0,0.0009589,120]
[343028706,1732295442975,-500.0,0.0009589,120]
[343028708,1732295442988,-500.0,0.0009589,120]
[343028709,1732295443001,-483.83401964,0.0009589,120]
[343028710,1732295443013,-500.0,0.0009589,120]
[343028711,1732295443026,-500.0,0.0009589,120]
[343028712,1732295443038,-255.0,0.0009589,120]
[343028713,1732295443049,-500.0,0.0009589,120]
[343028714,1732295443061,-500.0,0.0009589,120]
[343028715,1732295443073,-500.0,0.0009589,120]
[343028717,1732295443085,-500.0,0.0009589,120]
[343028718,1732295443096,-500.0,0.0009589,120]
[343028719,1732295443108,-340.72156231,0.0009589,120]
[343028720,1732295443120,-322.27,0.0009589,120]
[343028721,1732295443131,-500.0,0.0009589,120]
[343028722,1732295443144,-182.01,0.0009589,120]
[343028723,1732295443156,-500.0,0.0009589,120]
[343028724,1732295443169,-500.0,0.0009589,120]
[343028725,1732295443180,-500.0,0.0009589,120]
[343028726,1732295443191,-500.0,0.0009589,120]
[343028727,1732295443207,-500.0,0.0009589,120]
[343028728,1732295443224,-2693.26,0.0009589,120]
[343028729,1732295443242,-2693.26,0.0009589,120]
[343028730,1732295443258,-2693.26,0.0009589,120]
[343028731,1732295443271,-2693.26,0.0009589,120]
[343028732,1732295443288,-2693.26,0.0009589,120]
[343028733,1732295443299,-2693.26,0.0009589,120]
[343028734,1732295443309,-2693.26,0.0009589,120]
[343028735,1732295443321,-2693.26,0.0009589,120]
[343028736,1732295443335,-2693.26,0.0009589,120]
[343028737,1732295443348,-2693.26,0.0009589,120]
[343028738,1732295443364,-2693.26,0.0009589,120]
[343028739,1732295443379,-2693.26,0.0009589,120]
[343028740,1732295443389,-2693.26,0.0009589,120]
[343028741,1732295443400,-2693.26,0.0009589,120]
[343028742,1732295443411,-2693.26,0.0009589,120]
[343028743,1732295443426,-2693.26,0.0009589,120]
[343028744,1732295443441,-500.0,0.0009589,120]
[343028745,1732295443455,-500.0,0.0009589,120]
[343028746,1732295443471,-500.0,0.0009589,120]
[343028747,1732295443486,-500.0,0.0009589,120]
[343028748,1732295443499,-500.0,0.0009589,120]
[343028749,1732295443512,-500.0,0.0009589,120]
[343028750,1732295443525,-491.08584,0.0009589,120]
[343028751,1732295443540,-500.0,0.0009589,120]
[343028752,1732295443553,-500.0,0.0009589,120]
[343028753,1732295443565,-500.0,0.0009589,120]
[343028754,1732295443577,-500.0,0.0009589,120]
[343028755,1732295443589,-193.2639077,0.0009589,120]
[343028757,1732295443602,-500.0,0.0009589,120]
[343028759,1732295443614,-500.0,0.0009589,120]
[343028761,1732295443628,-500.0,0.0009589,120]